fUST/lending_fUST_20240825
["ID","MTS","AMOUNT","RATE_DAILY","PERIOD"]
[335849720,1724531498456,-500.0,0.00016438,2]
[335849721,1724531498466,-533.93077872,0.00016438,2]
[335849722,1724531498476,-500.0,0.00016438,2]
[335849723,1724531498486,-1085.43,0.00016438,2]
[335849724,1724531498495,-1002.47,0.00016438,2]
[335849725,1724531498505,-639.11,0.00016438,2]
[335849726,1724531498514,-500.0,0.00016438,2]
[335849727,1724531498523,-761.14,0.00016438,2]
[335849728,1724531498533,-926.86,0.00016438,2]
[335849729,1724531498542,-500.0,0.00016438,2]
[335849730,1724531498551,-526.71,0.00016438,2]
[335849731,1724531498560,-744.22,0.00016438,2]
[335849732,1724531498571,-500.0,0.00016438,2]
[335849733,1724531498582,-631.93,0.00016438,2]
[335849734,1724531498591,-2112.1,0.00016438,2]
[335849735,1724531498601,-592.66,0.00016438,2]
[335849736,1724531498611,-884.46,0.00016438,2]
[335849737,1724531498620,-284.97273742,0.00016438,2]
[335849738,1724531498629,-500.0,0.00016438,2]
[335849739,1724531498639,-2931.13,0.00016438,2]
[335849740,1724531498649,-1078.65,0.00016438,2]
[335849741,1724531498661,-500.0,0.00016438,2]
[335849742,1724531498670,-500.0,0.00016438,2]
[335849743,1724531498680,-500.0,0.00016438,2]
[335849744,1724531498690,-618.62,0.00016438,2]
[335849745,1724531498699,-816.32,0.00016438,2]
[335849746,1724531498711,-800.21,0.00016438,2]
[335849747,1724531498724,-781.63,0.00016438,2]
[335849748,1724531498734,-500.0,0.00016438,2]
[335849749,1724531498744,-1221.12,0.00016438,2]
[335849750,1724531498755,-646.32,0.00016438,2]
[335849751,1724531498766,-500.0,0.00016438,2]
[335849752,1724531498776,-2043.72,0.00016438,2]
[335849753,1724531498786,-500.0,0.00016438,2]
[335849754,1724531498796,-1010.23,0.00016438,2]
[335849755,1724531498805,-500.0,0.00016438,2]
[335849756,1724531498815,-766.22,0.00016438,2]
[335849757,1724531498825,-500.0,0.00016438,2]
[335849758,1724531498834,-799.71,0.00016438,2]
[335849759,1724531498844,-502.44,0.00016438,2]
[335849760,1724531498853,-500.13,0.00016438,2]
[335849761,1724531498863,-578.8,0.00016438,2]
[335849762,1724531498873,-500.0,0.00016438,2]
[335849763,1724531498882,-500.0,0.00016438,2]
[335849764,1724531498892,-594.16,0.00016438,2]
[335849765,1724531498902,-1288.02,0.00016438,2]
[335849766,1724531498913,-969.48,0.00016438,2]
[335849767,1724531498922,-500.0,0.00016438,2]
[335849768,1724531498932,-1368.37,0.00016438,2]
[335849769,1724531498941,-500.0,0.00016438,2]
[335849770,1724531498950,-1302.49,0.00016438,2]
[335849771,1724531498960,-500.0,0.00016438,2]
[335849772,1724531498970,-500.0,0.00016438,2]
[335849773,1724531498979,-500.0,0.00016438,2]
[335849774,1724531498988,-675.1,0.00016438,2]
[335849775,1724531498997,-500.0,0.00016438,2]
[335849776,1724531499007,-500.0,0.00016438,2]
[335849777,1724531499016,-872.09,0.00016438,2]
[335849778,1724531499025,-852.86,0.00016438,2]
[335849779,1724531499036,-500.0,0.00016438,2]
[335849780,1724531499049,-1320.03,0.00016438,2]
[335849781,1724531499058,-2614.24,0.00016438,2]
[335849782,1724531499068,-500.0,0.00016438,2]
[335849783,1724531499077,-1263.51,0.00016438,2]
[335849784,1724531499087,-1424.95,0.00016438,2]
[335849785,1724531499097,-2728.43,0.00016438,2]
[335849786,1724531499106,-1292.45,0.00016438,2]
[335849787,1724531499115,-507.92,0.00016438,2]
[335849788,1724531499127,-688.45,0.00016438,2]
[335849789,1724531499137,-500.0,0.00016438,2]
[335849790,1724531499147,-1410.25,0.00016438,2]
[335849791,1724531499159,-754.58,0.00016438,2]
[335849792,1724531499169,-2375.92,0.00016438,2]
[335849793,1724531499179,-500.0,0.00016438,2]
[335849794,1724531499188,-1921.55,0.00016438,2]
[335849795,1724531499198,-980.6,0.00016438,2]
[335849796,1724531499208,-500.0,0.00016438,2]
[335849797,1724531499217,-500.0,0.00016438,2]
[335849798,1724531499226,-500.0,0.00016438,2]
[335849799,1724531499236,-999.26,0.00016438,2]
[335849800,1724531499245,-1062.09,0.00016438,2]
[335849801,1724531499255,-637.81,0.00016438,2]
[335849802,1724531499264,-1225.13,0.00016438,2]
[335849803,1724531499275,-800.8,0.00016438,2]
[335849804,1724531499284,-500.0,0.00016438,2]
[335849805,1724531499293,-1128.59,0.00016438,2]
[335849806,1724531499302,-819.98,0.00016438,2]
[335849807,1724531499311,-548.82,0.00016438,2]
[335849808,1724531499322,-500.0,0.00016438,2]
[335849809,1724531499332,-1212.1,0.00016438,2]
[335849810,1724531499342,-1327.62,0.00016438,2]
[335849811,1724531499352,-816.93,0.00016438,2]
[335849812,1724531499362,-1347.74,0.00016438,2]
[335849813,1724531499372,-654.44,0.00016438,2]
[335849814,1724531499381,-1183.71,0.00016438,2]
[335849815,1724531499391,-500.0,0.00016438,2]
[335849816,1724531499402,-500.0,0.00016438,2]
[335849817,1724531499412,-500.0,0.00016438,2]
[335849818,1724531499422,-500.0,0.00016438,2]
[335849819,1724531499432,-500.0,0.00016438,2]
[335849820,1724531499442,-1399.1,0.00016438,2]
[335849821,1724531499452,-1258.48,0.00016438,2]
[335849822,1724531499462,-908.55,0.00016438,2]
[335849823,1724531499472,-669.53,0.00016438,2]
[335849824,1724531499482,-833.72,0.00016438,2]
[335849825,1724531499492,-675.35,0.00016438,2]
[335849826,1724531499502,-626.94,0.00016438,2]
[335849827,1724531499511,-1045.54,0.00016438,2]
[335849828,1724531499521,-707.88,0.00016438,2]
[335849829,1724531499531,-1304.4,0.00016438,2]
[335849830,1724531499540,-1138.3,0.00016438,2]
[335849831,1724531499550,-1291.63,0.00016438,2]
[335849832,1724531499560,-500.0,0.00016438,2]
[335849833,1724531499570,-622.87,0.00016438,2]
[335849834,1724531499579,-701.54,0.00016438,2]
[335849835,1724531499589,-1511.45,0.00016438,2]
[335849836,1724531499599,-1658.12,0.00016438,2]
[335849837,1724531499609,-842.01,0.00016438,2]
[335849838,1724531499618,-500.0,0.00016438,2]
[335849839,1724531499628,-500.0,0.00016438,2]
[335849840,1724531499637,-789.09,0.00016438,2]
[335849841,1724531499647,-615.1,0.00016438,2]
[335849842,1724531499657,-697.2,0.00016438,2]
[335849843,1724531499667,-500.0,0.00016438,2]
[335849844,1724531499676,-500.0,0.00016438,2]
[335849845,1724531499686,-805.35,0.00016438,2]
[335849846,1724531499696,-1362.32,0.00016438,2]
[335849847,1724531499705,-983.04,0.00016438,2]
[335849848,1724531499716,-624.92,0.00016438,2]
[335849849,1724531499726,-530.79,0.00016438,2]
[335849850,1724531499737,-1060.9,0.00016438,2]
[335849851,1724531499747,-609.17,0.00016438,2]
[335849852,1724531499758,-569.95,0.00016438,2]
[335849853,1724531499768,-1647.52,0.00016438,2]
[335849854,1724531499778,-509.84,0.00016438,2]
[335849855,1724531499787,-500.0,0.00016438,2]
[335849856,1724531499797,-2067.06,0.00016438,2]
[335849857,1724531499807,-551.95,0.00016438,2]
[335849858,1724531499818,-2076.6,0.00016438,2]
[335849859,1724531499828,-733.55,0.00016438,2]
[335849860,1724531499838,-1212.03,0.00016438,2]
[335849861,1724531499848,-824.83,0.00016438,2]
[335849862,1724531499858,-541.05,0.00016438,2]
[335849863,1724531499867,-706.53,0.00016438,2]
[335849864,1724531499877,-1031.72,0.00016438,2]
[335849865,1724531499887,-500.0,0.00016438,2]
[335849866,1724531499896,-500.0,0.00016438,2]
[335849867,1724531499906,-821.42,0.00016438,2]
[335849868,1724531499916,-1269.14,0.00016438,2]
[335849869,1724531499926,-203.80011536,0.00016438,2]
[335849870,1724531499936,-550.91,0.00016438,2]
[335849871,1724531499946,-2330.5,0.00016438,2]
[335849872,1724531499955,-564.78,0.00016438,2]
[335849873,1724531499966,-500.0,0.00016438,2]
[335849874,1724531499975,-500.0,0.00016438,2]
[335849875,1724531499985,-500.0,0.00016438,2]
[335849876,1724531499995,-536.71,0.00016438,2]
[335849877,1724531500004,-2051.66,0.00016438,2]
[335849878,1724531500014,-500.0,0.00016438,2]
[335849879,1724531500024,-1362.21,0.00016438,2]
[335849880,1724531500033,-500.0,0.00016438,2]
[335849881,1724531500045,-5397.94,0.00016438,2]
[335849882,1724531500056,-6804.12,0.00016438,2]
[335849883,1724531500065,-884.96,0.00016438,2]
[335849884,1724531500075,-648.45,0.00016438,2]
[335849885,1724531500085,-686.18,0.00016438,2]
[335849886,1724531500094,-1785.1,0.00016438,2]
[335849887,1724531500104,-711.95,0.00016438,2]
[335849888,1724531500113,-3273.28,0.00016438,2]
[335849889,1724531500125,-1293.47,0.00016438,2]
[335849890,1724531500135,-1164.49,0.00016438,2]
[335849891,1724531500145,-3352.92,0.00016438,2]
[335849892,1724531500155,-500.0,0.00016438,2]
[335849893,1724531500164,-747.91,0.00016438,2]
[335849894,1724531500174,-730.3,0.00016438,2]
[335849895,1724531500183,-1003.19,0.00016438,2]
[335849896,1724531500194,-1036.67,0.00016438,2]
[335849897,1724531500206,-3007.21,0.00016438,2]
[335849898,1724531500216,-598.05,0.00016438,2]
[335849899,1724531500226,-1648.7,0.00016438,2]
[335849900,1724531500235,-500.0,0.00016438,2]
[335849901,1724531500245,-2248.02,0.00016438,2]
[335849902,1724531500255,-940.59,0.00016438,2]
[335849903,1724531500265,-896.98,0.00016438,2]
[335849904,1724531500274,-762.45,0.00016438,2]
[335849905,1724531500284,-613.35,0.00016438,2]
[335849906,1724531500293,-896.49,0.00016438,2]
[335849907,1724531500303,-7990.85,0.00016438,2]
[335849908,1724531500313,-500.0,0.00016438,2]
[335849909,1724531500329,-3087.13,0.00016438,2]
[335849910,1724531500338,-1632.06,0.00016438,2]
[335849911,1724531500348,-570.3,0.00016438,2]
[335849912,1724531500357,-3378.83,0.00016438,2]
[335849913,1724531500367,-963.5,0.00016438,2]
[335849914,1724531500377,-764.0,0.00016438,2]
[335849915,1724531500386,-500.0,0.00016438,2]
[335849916,1724531500397,-644.41,0.00016438,2]
[335849917,1724531500406,-1924.56,0.00016438,2]
[335849918,1724531500416,-5273.79,0.00016438,2]
[335849919,1724531500426,-896.55,0.00016438,2]
[335849920,1724531500436,-10892.31,0.00016438,2]
[335849921,1724531500446,-3022.35,0.00016438,2]
[335849922,1724531500456,-7921.53,0.00016438,2]
[335849923,1724531500466,-663.04,0.00016438,2]
[335849924,1724531500476,-500.0,0.00016438,2]
[335849925,1724531500486,-500.0,0.00016438,2]
[335849926,1724531500496,-775.53,0.00016438,2]
[335849927,1724531500506,-1062.57,0.00016438,2]
[335849928,1724531500515,-637.96,0.00016438,2]
[335849929,1724531500524,-670.81,0.00016438,2]
[335849930,1724531500534,-500.0,0.00016438,2]
[335849931,1724531500543,-1720.57,0.00016438,2]
[335849932,1724531500553,-660.87,0.00016438,2]
[335849933,1724531500563,-500.0,0.00016438,2]
[335849934,1724531500573,-802.38,0.00016438,2]
[335849935,1724531500586,-1839.52,0.00016438,2]
[335849936,1724531500595,-22051.78,0.00016438,2]
[335849937,1724531500605,-2124.46,0.00016438,2]
[335849938,1724531500614,-823.68,0.00016438,2]
[335849939,1724531500624,-823.85,0.00016438,2]
[335849940,1724531500633,-968.76,0.00016438,2]
[335849941,1724531500643,-2260.21,0.00016438,2]
[335849942,1724531500796,-4073.78,0.00016438,2]
[335849943,1724531500807,-500.0,0.00016438,2]
[335849944,1724531500816,-500.0,0.00016438,2]
[335849945,1724531500826,-805.16,0.00016438,2]
[335849946,1724531500836,-530.56683352,0.00016438,2]
[335849947,1724531500846,-728.77,0.00016438,2]
[335849948,1724531500856,-500.0,0.00016438,2]
[335849949,1724531500867,-591.04,0.00016438,2]
[335849950,1724531500876,-500.0,0.00016438,2]
[335849951,1724531500886,-9393.57,0.00016438,2]
[335849952,1724531500895,-3343.01,0.00016438,2]
[335849953,1724531500905,-1899.14,0.00016438,2]
[335849954,1724531500915,-1029.65,0.00016438,2]
[335849955,1724531500924,-721.66,0.00016438,2]
[335849956,1724531500933,-734.3,0.00016438,2]
[335849957,1724531500942,-1502.18,0.00016438,2]
[335849958,1724531500952,-2917.34,0.00016438,2]
[335849959,1724531500961,-1262.64,0.00016438,2]
[335849960,1724531500971,-1438.33,0.00016438,2]
[335849961,1724531500981,-3106.9,0.00016438,2]
[335849962,1724531500991,-14408.06,0.00016438,2]
[335849963,1724531501000,-500.0,0.00016438,2]
[335849964,1724531501010,-2712.11,0.00016438,2]
[335849965,1724531501020,-2193.8,0.00016438,2]
[335849966,1724531501029,-2815.63,0.00016438,2]
[335849967,1724531501040,-2259.87,0.00016438,2]
[335849968,1724531501055,-500.0,0.00016438,2]
[335849969,1724531501064,-627.85,0.00016438,2]
[335849970,1724531501074,-1129.92,0.00016438,2]
[335849971,1724531501084,-789.7,0.00016438,2]
[335849972,1724531501094,-500.0,0.00016438,2]
[335849973,1724531501104,-2350.51,0.00016438,2]
[335849974,1724531501114,-741.25,0.00016438,2]
[335849975,1724531501125,-2327.67,0.00016438,2]
[335849976,1724531501135,-2773.88,0.00016438,2]
[335849977,1724531501144,-500.0,0.00016438,2]
[335849978,1724531501154,-1842.59,0.00016438,2]
[335849979,1724531501163,-4763.79,0.00016438,2]
[335849980,1724531501174,-500.0,0.00016438,2]
[335849981,1724531501184,-1819.59,0.00016438,2]
[335849982,1724531501193,-621.55,0.00016438,2]
[335849983,1724531501203,-3461.51,0.00016438,2]
[335849984,1724531501213,-1288.14,0.00016438,2]
[335849985,1724531501222,-807.08,0.00016438,2]
[335849986,1724531501232,-679.29,0.00016438,2]
[335849987,1724531501242,-7396.52,0.00016438,2]
[335849988,1724531501252,-814.15,0.00016438,2]
[335849989,1724531501261,-20361.09,0.00016438,2]
[335849990,1724531501271,-904.12,0.00016438,2]
[335849991,1724531501281,-2226.72,0.00016438,2]
[335849992,1724531501290,-11201.75,0.00016438,2]
[335849993,1724531501300,-10180.43,0.00016438,2]
[335849994,1724531501310,-1538.63,0.00016438,2]
[335849995,1724531501320,-718.11,0.00016438,2]
[335849996,1724531501330,-699.61,0.00016438,2]
[335849997,1724531501340,-2896.04,0.00016438,2]
[335849998,1724531501350,-3039.26,0.00016438,2]
[335849999,1724531501360,-297.40581574,0.00016438,2]
[335850000,1724531501370,-2034.56,0.00016438,2]
[335850001,1724531501379,-685.31,0.00016438,2]
[335850002,1724531501389,-587.79422208,0.00016438,2]
[335850003,1724531501399,-1232.81,0.00016438,2]
[335850004,1724531501409,-500.0,0.00016438,2]
[335850005,1724531501419,-500.0,0.00016438,2]
[335850006,1724531501429,-1832.98,0.00016438,2]
[335850007,1724531501439,-941.9,0.00016438,2]
[335850008,1724531501450,-1070.08,0.00016438,2]
[335850009,1724531501460,-11259.44,0.00016438,2]
[335850010,1724531501469,-500.0,0.00016438,2]
[335850011,1724531501479,-4136.04,0.00016438,2]
[335850012,1724531501488,-187.207683,0.00016438,2]
[335850013,1724531501498,-187.207683,0.00016438,2]
[335850014,1724531501508,-187.207683,0.00016438,2]
[335850015,1724531501517,-187.207683,0.00016438,2]
[335850016,1724531501527,-187.207682,0.00016438,2]
[335850017,1724531501537,-3000.0,0.0001644,2]
[335850018,1724531501547,-3000.0,0.0001645,2]
[335850019,1724531501557,-3000.0,0.0001646,2]
[335850020,1724531501567,-550.0,0.00016464,2]
[335850021,1724531501578,-3000.0,0.0001647,2]
[335850022,1724531501587,-3000.0,0.0001648,2]
[335850023,1724531501597,-3000.0,0.0001649,2]
[335850024,1724531501607,-277.80115858,0.000165,2]
[335850025,1724531501616,-3000.0,0.000165,2]
[335850026,1724531501626,-3000.0,0.0001651,2]
[335850027,1724531501638,-3000.0,0.0001652,2]
[335850028,1724531501648,-2000.0,0.00016524,2]
[335850029,1724531501659,-3000.0,0.0001653,2]
[335850030,1724531501669,-3000.0,0.0001654,2]
[335850031,1724531501678,-3000.0,0.0001655,2]
[335850032,1724531501688,-3000.0,0.0001656,2]
[335850033,1724531501698,-3000.0,0.0001657,2]
[335850034,1724531501707,-3000.0,0.0001658,2]
[335850035,1724531501717,-3000.0,0.0001659,2]
[335850036,1724531501727,-3000.0,0.000166,2]
[335850037,1724531501737,-3000.0,0.0001661,2]
[335850038,1724531501747,-3000.0,0.0001662,2]
[335850039,1724531501756,-5107.287409,0.0001663,2]
[335850040,1724531501766,-150.0,0.00016673,2]
[335850041,1724531501775,-150.0,0.00016673,2]
[335850042,1724531501785,-150.0,0.00016673,2]
[335850043,1724531501794,-500.0,0.00016685,2]
[335850044,1724531501804,-500.0,0.0001669,2]
[335850045,1724531501813,-500.0,0.0001669,2]
[335850046,1724531501823,-150.0,0.000167,2]
[335850047,1724531501834,-522.0,0.000167,2]
[335850048,1724531501845,-1416.0,0.000167,2]
[335850049,1724531501854,-813.56,0.00016712,2]
[335850050,1724531501864,-500.0,0.00016712,2]
[335850051,1724531501873,-579.68559709,0.00016712,2]
[335850052,1724531501882,-734.4,0.00016712,2]
[335850053,1724531501892,-603.04,0.00016712,2]
[335850054,1724531501901,-622.05,0.00016712,2]
[335850055,1724531501911,-478.76622001,0.00016712,2]
[335850056,1724531501920,-500.0,0.00016712,2]
[335850057,1724531501929,-500.0,0.00016712,2]
[335850058,1724531501939,-519.65,0.00016712,2]
[335850059,1724531501949,-713.04,0.00016712,2]
[335850060,1724531501958,-500.0,0.00016712,2]
[335850061,1724531501968,-530.24,0.00016712,2]
[335850062,1724531501977,-602.6,0.00016712,2]
[335850063,1724531501987,-310.12,0.00016712,2]
[335850064,1724531501996,-500.0,0.00016712,2]
[335850065,1724531502005,-784.11,0.00016712,2]
[335850066,1724531502015,-500.0,0.00016712,2]
[335850067,1724531502024,-623.7491088,0.00016712,2]
[335850068,1724531502034,-500.0,0.00016712,2]
[335850069,1724531502045,-563.59,0.00016712,2]
[335850070,1724531502055,-891.68,0.00016712,2]
[335850071,1724531502065,-805.77,0.00016712,2]
[335850072,1724531502075,-569.79,0.00016712,2]
[335850073,1724531502084,-523.9,0.00016712,2]
[335850074,1724531502094,-562.45,0.00016712,2]
[335850075,1724531502103,-962.65,0.00016712,2]
[335850076,1724531502113,-559.36,0.00016712,2]
[335850077,1724531502123,-586.18,0.00016712,2]
[335850078,1724531502133,-807.15,0.00016712,2]
[335850079,1724531502142,-583.94,0.00016712,2]
[335850080,1724531502152,-533.88,0.00016712,2]
[335850081,1724531502161,-760.25,0.00016712,2]
[335850082,1724531502171,-583.15,0.00016712,2]
[335850083,1724531502181,-863.95,0.00016712,2]
[335850084,1724531502191,-520.2,0.00016712,2]
[335850085,1724531502200,-500.0,0.00016712,2]
[335850086,1724531502209,-1365.0,0.00016712,2]
[335850087,1724531502220,-850.08,0.00016712,2]
[335850088,1724531502230,-752.47,0.00016712,2]
[335850089,1724531502239,-240.11293587,0.00016712,2]
[335850090,1724531502249,-500.0,0.00016712,2]
[335850091,1724531502258,-1109.59,0.00016712,2]
[335850092,1724531502268,-543.80862366,0.00016712,2]
[335850093,1724531502277,-706.93,0.00016712,2]
[335850094,1724531502287,-500.0,0.00016712,2]
[335850095,1724531502297,-576.76,0.00016712,2]
[335850096,1724531502306,-823.53,0.00016712,2]
[335850097,1724531502316,-500.0,0.00016712,2]
[335850098,1724531502326,-500.0,0.00016712,2]
[335850099,1724531502336,-500.0,0.00016712,2]
[335850100,1724531502346,-526.81,0.00016712,2]
[335850101,1724531502356,-500.0,0.00016712,2]
[335850102,1724531502366,-500.0,0.00016712,2]
[335850103,1724531502376,-500.0,0.00016712,2]
[335850104,1724531502386,-677.32,0.00016712,2]
[335850105,1724531502395,-500.0,0.00016712,2]
[335850106,1724531502405,-500.0,0.00016712,2]
[335850107,1724531502414,-500.0,0.00016712,2]
[335850108,1724531502424,-929.47,0.00016712,2]
[335850109,1724531502433,-500.0,0.00016712,2]
[335850110,1724531502443,-748.15,0.00016712,2]
[335850111,1724531502453,-534.28,0.00016712,2]
[335850112,1724531502463,-500.0,0.00016712,2]
[335850113,1724531502473,-500.0,0.00016712,2]
[335850114,1724531502483,-774.94,0.00016712,2]
[335850115,1724531502492,-1168.85,0.00016712,2]
[335850116,1724531502502,-500.0,0.00016712,2]
[335850117,1724531502512,-500.0,0.00016712,2]
[335850118,1724531502521,-1085.43,0.00016712,2]
[335850119,1724531502530,-1002.47,0.00016712,2]
[335850120,1724531502540,-639.11,0.00016712,2]
[335850121,1724531502549,-500.0,0.00016712,2]
[335850122,1724531502559,-761.14,0.00016712,2]
[335850123,1724531502569,-926.86,0.00016712,2]
[335850124,1724531502578,-500.0,0.00016712,2]
[335850125,1724531502588,-526.71,0.00016712,2]
[335850126,1724531502598,-744.22,0.00016712,2]
[335850127,1724531502608,-500.0,0.00016712,2]
[335850128,1724531502618,-631.93,0.00016712,2]
[335850129,1724531502627,-2112.1,0.00016712,2]
[335850130,1724531502637,-592.66,0.00016712,2]
[335850131,1724531502647,-884.46,0.00016712,2]
[335850132,1724531502657,-500.0,0.00016712,2]
[335850133,1724531502667,-2931.13,0.00016712,2]
[335850134,1724531502677,-1078.65,0.00016712,2]
[335850135,1724531502687,-500.0,0.00016712,2]
[335850136,1724531502696,-500.0,0.00016712,2]
[335850137,1724531502705,-500.0,0.00016712,2]
[335850138,1724531502715,-618.62,0.00016712,2]
[335850139,1724531502726,-816.32,0.00016712,2]
[335850140,1724531502738,-800.21,0.00016712,2]
[335850141,1724531502750,-781.63,0.00016712,2]
[335850142,1724531502761,-500.0,0.00016712,2]
[335850143,1724531502771,-1221.12,0.00016712,2]
[335850144,1724531502782,-646.32,0.00016712,2]
[335850145,1724531502793,-500.0,0.00016712,2]
[335850146,1724531502804,-2043.72,0.00016712,2]
[335850147,1724531502816,-500.0,0.00016712,2]
[335850148,1724531502828,-1010.23,0.00016712,2]
[335850149,1724531502839,-500.0,0.00016712,2]
[335850150,1724531502849,-766.22,0.00016712,2]
[335850151,1724531502861,-500.0,0.00016712,2]
[335850152,1724531502871,-799.71,0.00016712,2]
[335850153,1724531502882,-502.44,0.00016712,2]
[335850154,1724531502892,-500.13,0.00016712,2]
[335850155,1724531502901,-578.8,0.00016712,2]
[335850156,1724531502911,-500.0,0.00016712,2]
[335850157,1724531502921,-500.0,0.00016712,2]
[335850158,1724531502931,-594.16,0.00016712,2]
[335850159,1724531502940,-1288.02,0.00016712,2]
[335850160,1724531502950,-969.48,0.00016712,2]
[335850161,1724531502959,-500.0,0.00016712,2]
[335850162,1724531502969,-1368.37,0.00016712,2]
[335850163,1724531502979,-500.0,0.00016712,2]
[335850164,1724531502988,-1302.49,0.00016712,2]
[335850165,1724531502997,-500.0,0.00016712,2]
[335850166,1724531503006,-527.34540874,0.00016712,2]
[335850167,1724531503016,-500.0,0.00016712,2]
[335850168,1724531503025,-675.1,0.00016712,2]
[335850169,1724531503035,-500.0,0.00016712,2]
[335850170,1724531503047,-500.0,0.00016712,2]
[335850171,1724531503056,-872.09,0.00016712,2]
[335850172,1724531503065,-852.86,0.00016712,2]
[335850173,1724531503076,-500.0,0.00016712,2]
[335850174,1724531503085,-1320.03,0.00016712,2]
[335850175,1724531503096,-2614.24,0.00016712,2]
[335850176,1724531503105,-500.0,0.00016712,2]
[335850177,1724531503114,-1263.51,0.00016712,2]
[335850178,1724531503125,-1424.95,0.00016712,2]
[335850179,1724531503135,-2728.43,0.00016712,2]
[335850180,1724531503144,-1292.45,0.00016712,2]
[335850181,1724531503154,-507.92,0.00016712,2]
[335850182,1724531503163,-688.45,0.00016712,2]
[335850183,1724531503173,-500.0,0.00016712,2]
[335850184,1724531503183,-1410.25,0.00016712,2]
[335850185,1724531503193,-754.58,0.00016712,2]
[335850186,1724531503203,-2375.92,0.00016712,2]
[335850187,1724531503213,-500.0,0.00016712,2]
[335850188,1724531503222,-1921.55,0.00016712,2]
[335850189,1724531503231,-980.6,0.00016712,2]
[335850190,1724531503241,-500.0,0.00016712,2]
[335850191,1724531503253,-500.0,0.00016712,2]
[335850192,1724531503262,-500.0,0.00016712,2]
[335850193,1724531503272,-999.26,0.00016712,2]
[335850194,1724531503281,-1062.09,0.00016712,2]
[335850195,1724531503290,-637.81,0.00016712,2]
[335850196,1724531503299,-1225.13,0.00016712,2]
[335850197,1724531503309,-800.8,0.00016712,2]
[335850198,1724531503319,-500.0,0.00016712,2]
[335850199,1724531503338,-1128.59,0.00016712,2]
[335850200,1724531503347,-819.98,0.00016712,2]
[335850201,1724531503356,-548.82,0.00016712,2]
[335850202,1724531503366,-500.0,0.00016712,2]
[335850203,1724531503376,-1212.1,0.00016712,2]
[335850204,1724531503385,-1327.62,0.00016712,2]
[335850205,1724531503395,-816.93,0.00016712,2]
[335850206,1724531503404,-1347.74,0.00016712,2]
[335850207,1724531503415,-654.44,0.00016712,2]
[335850208,1724531503424,-1183.71,0.00016712,2]
[335850209,1724531503434,-500.0,0.00016712,2]
[335850210,1724531503444,-500.0,0.00016712,2]
[335850211,1724531503455,-500.0,0.00016712,2]
[335850212,1724531503465,-500.0,0.00016712,2]
[335850213,1724531503475,-500.0,0.00016712,2]
[335850214,1724531503485,-1399.1,0.00016712,2]
[335850215,1724531503495,-1258.48,0.00016712,2]
[335850216,1724531503505,-908.55,0.00016712,2]
[335850217,1724531503515,-669.53,0.00016712,2]
[335850218,1724531503525,-833.72,0.00016712,2]
[335850219,1724531503534,-675.35,0.00016712,2]